bitfinex/quotes_SOLUSD_20240717
["timestamp","ask_amount","ask_price","bid_price","bid_amount"]
[1721197313695,6.3862,161.98,161.92,14.68]
[1721197313881,6.174,161.97,161.9,14.68]
[1721197314078,14.68,161.94,161.86,6.4141]
[1721197314404,14.68,161.93,161.87,20.0]
[1721197314578,14.68,161.93,161.88,14.68]
[1721197314975,14.68,161.93,161.87,34.68]
[1721197315173,6.3862,161.98,161.87,34.68]
[1721197315174,16.1053,162.0,161.92,14.68]
[1721197315499,16.1053,162.0,161.91,14.68]
[1721197315500,14.68,161.96,161.91,14.68]
[1721197315792,14.68,161.96,161.92,1.23500284]
[1721197316105,14.68,161.97,161.92,15.91500284]
[1721197316483,14.68,161.98,161.92,14.68]
[1721197316992,14.68,161.96,161.91,14.68]
[1721197317305,14.85,161.97,161.91,14.68]
[1721197317803,14.85,161.97,161.89,1.2350711]
[1721197317804,14.85,161.97,161.92,14.68]
[1721197317995,14.68,161.97,161.92,14.68]
[1721197319474,14.68,161.97,161.91,14.68]
[1721197319713,14.68,161.96,161.91,14.68]
[1721197320413,6.174,161.97,161.89,14.68]
[1721197320609,0.17,161.99,161.87,14.68]
[1721197320610,14.68,161.93,161.87,14.68]
[1721197320783,14.68,161.91,161.86,14.68]
[1721197321090,14.68,161.92,161.87,14.68]
[1721197321410,14.68,161.94,161.89,14.68]
[1721197321775,14.85,161.93,161.85,6.41411616]
[1721197322084,14.68,161.94,161.89,14.68]
[1721197322586,14.68,161.95,161.9,15.91510942]
[1721197322782,14.68,161.96,161.91,14.68]
[1721197323094,14.68,161.95,161.9,14.68]
[1721197323292,0.17,161.97,161.88,14.68]
[1721197323495,6.0947,161.99,161.88,14.68]
[1721197323496,14.68,161.93,161.89,1.23522194]
[1721197323693,14.68,161.94,161.9,1.23518904]
[1721197323878,14.68,161.94,161.84,16.4474]
[1721197324208,14.85,161.93,161.88,14.68]
[1721197324997,14.85,161.93,161.87,14.68]
[1721197325200,14.68,161.92,161.86,14.68]
[1721197325404,14.68,161.9,161.85,6.41562675]
[1721197325783,14.68,161.89,161.85,6.41562675]
[1721197325987,14.68,161.9,161.85,21.09562675]
[1721197327602,14.85,161.91,161.85,21.09562675]
[1721197329006,14.68,161.9,161.85,21.09562675]
[1721197330005,14.68,161.89,161.85,6.41562675]
[1721197331391,14.68,161.86,161.81,14.68]
[1721197331586,14.68,161.86,161.79,1.23576959]
[1721197331787,14.68,161.86,161.81,14.68]
[1721197332183,6.3248,161.91,161.82,1.23579126]
[1721197332383,14.68,161.89,161.84,14.68]
[1721197332589,0.17,161.9,161.85,14.68]
[1721197332796,14.68,161.91,161.86,15.91543774]
[1721197332993,14.68,161.89,161.84,30.9882]
[1721197333305,14.68,161.89,161.85,20.0]
[1721197333479,6.3459,161.92,161.85,34.68]
[1721197333680,14.68,161.9,161.85,34.68]
[1721197333891,14.68,161.91,161.86,15.91549995]
[1721197334101,14.68,161.91,161.86,14.68]
[1721197334503,14.68,161.9,161.85,34.68]
[1721197334702,14.68,161.89,161.85,20.0]
[1721197335509,14.68,161.9,161.85,20.0]
[1721197335914,14.68,161.9,161.85,35.91550018]
[1721197336212,6.3459,161.92,161.85,20.0]
[1721197336421,0.17,161.91,161.85,20.0]
[1721197336797,0.34,161.92,161.85,20.0]
[1721197337198,0.34,161.92,161.85,21.23551907]
[1721197337408,0.17,161.91,161.85,21.23551907]
[1721197337616,0.34,161.93,161.85,21.23551907]
[1721197339005,6.5155,161.93,161.85,21.23551907]
[1721197339303,6.5155,161.93,161.85,20.0]
[1721197339612,6.5155,161.93,161.85,21.23551979]
[1721197341902,6.1759,161.92,161.85,20.0]
[1721197342105,0.34,161.91,161.85,20.0]
[1721197342414,0.17,161.9,161.85,20.0]
[1721197342620,0.17,161.9,161.77,6.5489]
[1721197342621,6.1777,161.88,161.78,16.5932]
[1721197342789,0.17,161.87,161.78,46.5932]
[1721197342994,0.34,161.87,161.78,46.5932]
[1721197343993,0.34,161.87,161.78,17.82909085]
[1721197344196,0.34,161.87,161.78,16.5932]
[1721197344381,0.34,161.87,161.79,20.0]
[1721197345195,0.17,161.87,161.79,20.0]
[1721197345923,6.1763,161.91,161.8,1.23566731]
[1721197346218,0.34,161.9,161.8,1.23566731]
[1721197346386,0.17,161.89,161.79,20.0]
[1721197346586,0.34,161.89,161.79,20.0]
[1721197346787,6.1774,161.88,161.79,20.0]
[1721197347001,0.34,161.87,161.79,20.0]
[1721197347200,6.5179,161.87,161.79,20.0]
[1721197347410,6.1781,161.86,161.79,20.0]
[1721197347616,0.34,161.85,161.79,20.0]
[1721197348934,0.34,161.85,161.8,1.23594111]
[1721197349136,0.34,161.85,161.8,1.23592573]
[1721197353937,0.34,161.86,161.8,1.23592573]
[1721197354111,0.34,161.86,161.79,20.0]
[1721197354312,0.34,161.86,161.79,21.23593795]
[1721197354716,0.34,161.86,161.8,1.23593758]
[1721197355426,0.34,161.86,161.79,21.23593673]
[1721197355946,0.34,161.86,161.8,1.23593673]
[1721197357036,0.17,161.86,161.79,20.0]
[1721197357248,0.34,161.87,161.79,20.0]
[1721197358244,0.34,161.87,161.8,14.68]
[1721197358245,14.68,161.85,161.8,14.68]
[1721197358426,14.68,161.85,161.79,20.0]
[1721197358747,14.85,161.84,161.79,34.68]
[1721197359832,0.17,161.84,161.8,15.91593199]
[1721197360043,14.68,161.86,161.81,14.68]
[1721197360230,0.17,161.85,161.81,14.68]
[1721197360436,0.17,161.85,161.81,15.91580671]
[1721197361643,0.17,161.85,161.81,14.68]
[1721197363558,14.68,161.86,161.82,1.23583018]
[1721197363780,14.68,161.88,161.83,1.23565742]
[1721197364430,14.68,161.86,161.79,20.0]
[1721197364636,14.68,161.86,161.81,14.68]
[1721197365040,14.68,161.85,161.8,14.68]
[1721197366850,14.68,161.85,161.81,1.23581538]
[1721197367053,14.68,161.86,161.81,1.23581538]
[1721197367938,14.68,161.86,161.79,20.0]
[1721197368174,14.68,161.85,161.8,14.68]
[1721197369654,14.68,161.82,161.78,16.5932]
[1721197371650,14.68,161.81,161.78,16.5932]
[1721197371852,14.68,161.81,161.74,22.53449238]
[1721197372048,14.68,161.8,161.76,30.0]
[1721197372249,14.68,161.8,161.77,20.0]
[1721197373059,14.68,161.8,161.76,20.0]
[1721197373358,14.68,161.77,161.74,16.1167]
[1721197373856,14.68,161.75,161.7,19.591245]
[1721197374161,14.68,161.76,161.71,14.68]
[1721197374860,14.68,161.76,161.72,20.0]
[1721197375563,14.68,161.75,161.72,20.0]
[1721197375750,14.68,161.75,161.71,20.0]
[1721197375952,14.85,161.78,161.71,20.0]
[1721197376245,14.68,161.77,161.71,14.68]
[1721197376443,14.68,161.76,161.72,20.0]
[1721197376847,14.68,161.76,161.72,21.23651327]
[1721197377143,14.68,161.77,161.72,35.91651327]
[1721197377340,0.17,161.78,161.73,14.68]
[1721197377539,14.68,161.78,161.73,14.68]
[1721197377739,58.72,161.84,161.72,20.0]
[1721197377958,14.68,161.76,161.71,14.68]
[1721197378164,14.68,161.76,161.72,20.0]
[1721197378353,14.68,161.77,161.72,34.68]
[1721197378563,14.85,161.76,161.72,20.0]
[1721197378737,14.68,161.76,161.72,20.0]
[1721197378942,14.68,161.74,161.7,24.911245]
[1721197380062,14.68,161.75,161.7,39.591245]
[1721197380365,0.17,161.76,161.71,14.68]
[1721197380568,0.17,161.78,161.71,15.91655407]
[1721197380744,14.68,161.75,161.7,39.591245]
[1721197380946,14.68,161.74,161.7,24.911245]
[1721197381669,14.68,161.75,161.7,39.591245]
[1721197381855,14.68,161.75,161.7,24.911245]
[1721197382353,0.17,161.76,161.7,39.591245]
[1721197382558,14.68,161.77,161.71,15.91651266]
[1721197382862,14.68,161.77,161.71,14.68]
[1721197383064,14.68,161.76,161.71,14.68]
[1721197383654,0.17,161.78,161.72,14.68]
[1721197383861,14.68,161.77,161.72,14.68]
[1721197384075,14.68,161.77,161.7,24.911245]
[1721197384076,0.17,161.76,161.7,24.911245]
[1721197384267,0.17,161.76,161.71,14.68]
[1721197384565,0.17,161.79,161.73,14.68]
[1721197384747,14.68,161.78,161.74,1.23639799]
[1721197385156,14.68,161.78,161.73,14.68]
[1721197385359,14.68,161.78,161.7,24.911245]
[1721197385547,26.1801,161.81,161.71,1.23637339]
[1721197385749,14.68,161.79,161.71,20.0]
[1721197386472,14.68,161.79,161.72,1.23637325]
[1721197386676,0.17,161.78,161.72,1.23637325]
[1721197387042,6.1796,161.83,161.73,1.23637279]
[1721197387257,0.17,161.82,161.75,14.68]
[1721197387566,14.68,161.8,161.76,1.23624334]
[1721197388144,14.68,161.8,161.71,20.0]
[1721197388145,14.68,161.8,161.75,14.68]
[1721197388647,14.68,161.8,161.76,1.23625615]
[1721197389272,14.68,161.8,161.75,14.68]
[1721197389472,14.68,161.79,161.73,14.68]
[1721197389662,14.68,161.76,161.71,20.0]
[1721197389964,14.68,161.76,161.71,15.91657122]
[1721197390169,14.68,161.76,161.72,20.0]
[1721197390368,14.68,161.75,161.72,20.0]
[1721197390745,14.68,161.75,161.71,20.0]
[1721197390945,14.68,161.75,161.7,39.591245]
[1721197391176,14.68,161.76,161.71,14.68]
[1721197391377,6.3511,161.79,161.72,20.0]
[1721197391566,14.68,161.76,161.72,20.0]
[1721197392169,14.68,161.76,161.71,15.91657848]
[1721197392473,14.68,161.75,161.7,19.591245]
[1721197392680,14.68,161.75,161.71,20.0]
[1721197392983,0.17,161.77,161.7,4.911245]
[1721197393200,14.68,161.74,161.7,4.911245]
[1721197394965,6.3517,161.77,161.7,4.911245]
[1721197395277,14.68,161.74,161.7,4.911245]
[1721197395478,14.68,161.73,161.7,4.911245]
[1721197396486,14.85,161.75,161.7,20.82793487]
[1721197397475,14.85,161.75,161.7,4.911245]
[1721197397985,14.68,161.74,161.7,4.911245]
[1721197398281,14.68,161.73,161.7,4.911245]
[1721197398954,0.17,161.75,161.7,4.911245]
[1721197399155,14.68,161.74,161.7,4.911245]
[1721197400188,14.68,161.73,161.7,4.911245]
[1721197401485,14.68,161.72,161.7,4.911245]
[1721197402979,0.17,161.71,161.7,4.911245]
[1721197403989,14.68,161.72,161.7,4.911245]
[1721197404368,14.85,161.73,161.7,4.911245]
[1721197404581,14.68,161.71,161.7,4.911245]
[1721197404790,14.85,161.71,161.7,4.911245]
[1721197405087,0.17,161.71,161.7,4.911245]
[1721197406082,14.85,161.72,161.7,4.911245]
[1721197406485,14.85,161.71,161.7,4.911245]
[1721197406669,15.02,161.71,161.7,4.911245]
[1721197407965,21.2039,161.71,161.7,4.911245]
[1721197408192,15.02,161.71,161.7,4.911245]
[1721197408993,21.2039,161.71,161.7,4.911245]
[1721197409789,15.02,161.71,161.7,4.911245]
[1721197411068,21.2039,161.71,161.7,4.911245]
[1721197414398,41.2039,161.71,161.7,4.911245]
[1721197414982,49.7,161.71,161.61,23.0097]
[1721197415178,14.68,161.62,161.61,16.4388]
[1721197415478,58.72,161.68,161.58,14.68]
[1721197415479,14.68,161.63,161.58,14.68]
[1721197415681,14.68,161.63,161.58,20.0]
[1721197416085,14.68,161.63,161.58,34.68]
[1721197416287,14.68,161.63,161.58,20.0]
[1721197416690,14.68,161.63,161.57,36.5907]
[1721197416884,14.68,161.62,161.57,36.5907]
[1721197417493,0.17,161.64,161.58,1.23758914]
[1721197417812,14.68,161.62,161.58,21.23758914]
[1721197418496,14.68,161.63,161.58,35.91758914]
[1721197418795,0.17,161.62,161.58,35.91758914]
[1721197419209,14.85,161.62,161.58,21.23758914]
[1721197419383,14.85,161.62,161.58,20.0]
[1721197419579,14.85,161.62,161.58,21.23761895]
[1721197419814,0.17,161.62,161.58,21.23761895]
[1721197420116,14.85,161.62,161.58,20.0]
[1721197420288,14.68,161.61,161.58,20.0]
[1721197420490,14.68,161.61,161.57,15.7171]
[1721197422215,14.68,161.58,161.54,6.4984]
[1721197423606,14.68,161.58,161.55,20.0]
[1721197425220,14.68,161.56,161.53,16.6362]
[1721197425590,14.68,161.55,161.53,16.6362]
[1721197426219,15.9862,161.63,161.51,0.8332435]
[1721197426388,15.9862,161.63,161.53,14.68]
[1721197426389,14.68,161.58,161.53,14.68]
[1721197426594,14.68,161.58,161.54,1.23791011]
[1721197426808,14.68,161.58,161.54,1.23791085]
[1721197426989,14.68,161.58,161.52,14.68]
[1721197427186,14.68,161.57,161.52,14.68]
[1721197427421,14.68,161.57,161.53,1.23792231]
[1721197428117,14.68,161.56,161.51,15.5132435]
[1721197428413,14.68,161.56,161.52,20.0]
[1721197428617,14.68,161.53,161.51,0.8332435]
[1721197428835,14.68,161.52,161.51,0.8332435]
[1721197429411,14.68,161.53,161.51,0.8332435]
[1721197429821,14.68,161.52,161.51,0.8332435]
[1721197430804,14.85,161.52,161.51,0.8332435]
[1721197430993,29.7,161.52,161.51,0.8332435]
[1721197431214,35.8911,161.52,161.51,0.8332435]
[1721197431800,15.02,161.52,161.51,0.8332435]
[1721197433302,0.17,161.52,161.51,0.8332435]
[1721197433510,6.1894,161.57,161.51,0.8332435]
[1721197433821,14.68,161.54,161.51,0.8332435]
[1721197434413,14.68,161.53,161.51,0.8332435]
[1721197434715,14.68,161.52,161.51,0.8332435]
[1721197435498,14.85,161.52,161.51,0.8332435]
[1721197435697,0.17,161.52,161.51,0.8332435]
[1721197436329,6.4216574,161.6,161.51,0.8332435]
[1721197436498,6.1884,161.6,161.51,35.5132435]
[1721197436697,14.68,161.57,161.52,14.68]
[1721197437020,14.68,161.56,161.51,35.5132435]
[1721197437223,14.68,161.6,161.51,0.8332435]
[1721197437520,14.68,161.54,161.51,0.8332435]
[1721197437724,58.72,161.6,161.51,0.8332435]
[1721197437725,14.68,161.52,161.51,0.8332435]
[1721197437911,0.17,161.52,161.51,0.8332435]
[1721197438496,14.68,161.53,161.51,0.8332435]
[1721197438898,0.17,161.52,161.51,0.8332435]
[1721197439128,14.85,161.52,161.51,0.8332435]
[1721197439800,15.02,161.52,161.51,0.8332435]
[1721197440209,21.2111,161.52,161.51,0.8332435]
[1721197441128,35.8911,161.52,161.51,0.8332435]
[1721197441500,6.5311,161.52,161.51,0.8332435]
[1721197441697,0.34,161.52,161.51,0.8332435]
[1721197441934,15.02,161.52,161.51,0.8332435]
[1721197442226,0.34,161.52,161.51,0.8332435]
[1721197442932,0.17,161.52,161.51,0.8332435]
[1721197443915,26.1896,161.56,161.51,0.8332435]
[1721197444110,6.19,161.55,161.51,0.8332435]
[1721197444730,6.1909,161.53,161.51,0.8332435]
[1721197444936,6.1904,161.54,161.51,0.8332435]
[1721197445409,0.34,161.53,161.51,0.8332435]
[1721197445910,6.5308,161.53,161.51,0.8332435]
[1721197447112,0.34,161.53,161.51,0.8332435]
[1721197447703,6.5311,161.53,161.51,0.8332435]
[1721197447905,0.34,161.53,161.51,0.8332435]
[1721197448137,6.5308,161.53,161.51,0.8332435]
[1721197449332,6.1911,161.52,161.51,0.8332435]
[1721197449627,6.5311,161.52,161.51,0.8332435]
[1721197450805,26.5311,161.52,161.51,0.8332435]
[1721197451004,56.0211,161.52,161.51,0.8332435]
[1721197452313,72.4059,161.52,161.51,0.8332435]
[1721197453624,78.6801,161.52,161.51,0.8332435]
[1721197454607,6.1936,161.46,161.39,15.5333]
[1721197454834,0.34,161.45,161.39,15.5333]
[1721197455205,6.1943,161.44,161.39,15.5333]
[1721197455410,0.17,161.43,161.39,15.5333]
[1721197455619,0.34,161.45,161.39,15.5333]
[1721197455940,0.17,161.44,161.39,16.77236909]
[1721197456128,0.17,161.45,161.39,16.77236909]
[1721197456330,0.34,161.46,161.39,16.77236909]
[1721197456511,26.1931,161.47,161.39,15.5333]
[1721197456512,20.0,161.47,161.39,15.5333]
[1721197456716,6.1923,161.49,161.39,15.5333]
[1721197456919,20.0,161.48,161.39,15.5333]
[1721197457122,6.1931,161.47,161.39,16.77233054]
[1721197457425,6.1934,161.46,161.39,15.5333]
[1721197457738,6.194,161.45,161.39,15.5333]
[1721197457911,0.34,161.44,161.39,15.5333]
[1721197458316,0.17,161.43,161.39,15.5333]
[1721197458611,6.5339,161.45,161.39,15.5333]
[1721197458933,0.34,161.45,161.39,15.5333]
[1721197459235,6.534,161.45,161.39,15.5333]
[1721197459425,0.34,161.45,161.39,15.5333]
[1721197459736,6.5339,161.45,161.39,15.5333]
[1721197460525,6.1943,161.44,161.39,15.5333]
[1721197460832,6.5347,161.43,161.39,15.5333]
[1721197461037,0.17,161.42,161.39,15.5333]
[1721197462810,20.0,161.48,161.39,15.5333]
[1721197463016,6.1931,161.47,161.39,16.7723509]
[1721197463431,6.1936,161.46,161.39,16.7723509]
[1721197463735,6.1939,161.45,161.39,15.5333]
[1721197464236,14.76,161.43,161.39,15.5333]
[1721197464615,0.17,161.42,161.39,15.5333]
[1721197464932,14.76,161.41,161.39,15.5333]
[1721197465235,14.76,161.42,161.39,15.5333]
[1721197465412,14.76,161.41,161.39,15.5333]
[1721197466539,14.76,161.4,161.39,15.5333]
[1721197466720,14.93,161.4,161.39,15.5333]
[1721197466919,0.17,161.4,161.39,15.5333]
[1721197467435,20.0,161.48,161.39,15.5333]
[1721197467733,14.76,161.42,161.39,15.5333]
[1721197467948,14.76,161.43,161.39,15.5333]
[1721197468638,15.1,161.44,161.39,15.5333]
[1721197468837,14.76,161.43,161.39,15.5333]
[1721197469042,14.76,161.42,161.39,15.5333]
[1721197469232,14.93,161.41,161.39,15.5333]
[1721197469538,0.17,161.42,161.39,15.5333]
[1721197469742,14.76,161.42,161.39,15.5333]
[1721197470046,14.76,161.4,161.39,15.5333]
[1721197470621,0.17,161.41,161.39,15.5333]
[1721197470622,14.93,161.41,161.39,15.5333]
[1721197470821,6.3647,161.43,161.39,15.5333]
[1721197470822,14.76,161.42,161.39,15.5333]
[1721197471835,0.17,161.43,161.39,30.2933]
[1721197472045,14.93,161.43,161.39,15.5333]
[1721197472518,20.0,161.48,161.39,15.5333]
[1721197472733,14.76,161.43,161.39,15.5333]
[1721197473225,14.76,161.42,161.39,15.5333]
[1721197473835,14.76,161.43,161.39,15.5333]
[1721197474523,0.17,161.44,161.39,15.5333]
[1721197474735,14.76,161.43,161.39,15.5333]
[1721197474941,14.76,161.44,161.39,31.53230813]
[1721197475123,6.41374746,161.51,161.41,6.4012]
[1721197475325,81.699,161.52,161.41,7.64007094]
[1721197475522,14.76,161.48,161.42,14.76]
[1721197475830,81.699,161.52,161.41,6.4012]
[1721197475831,14.76,161.45,161.41,6.4012]
[1721197476031,14.76,161.43,161.39,15.5333]
[1721197476428,6.1931,161.47,161.39,30.2933]
[1721197476636,14.76,161.44,161.39,30.2933]
[1721197476821,14.76,161.45,161.4,14.76]
[1721197477319,14.76,161.45,161.39,15.5333]
[1721197477652,14.76,161.43,161.39,15.5333]
[1721197477853,14.76,161.42,161.39,15.5333]
[1721197478267,0.34,161.44,161.39,15.5333]
[1721197480248,6.1951,161.42,161.35,21.5698435]
[1721197480447,0.34,161.41,161.35,22.80926713]
[1721197481340,0.17,161.41,161.36,1.23934002]
[1721197481549,36.1395,161.47,161.36,1.23934002]
[1721197481728,20.34,161.46,161.36,1.23934002]
[1721197482227,0.34,161.46,161.36,1.23934002]
[1721197482532,6.5335,161.46,161.36,1.23934002]
[1721197483232,6.2462,161.51,161.37,51.0121]
[1721197483432,6.2462,161.51,161.38,21.23887706]
[1721197483651,6.1931,161.47,161.38,21.23887706]
[1721197483843,6.2462,161.51,161.38,21.23887706]
[1721197484044,6.1924,161.49,161.38,21.23887706]
[1721197484432,6.1919,161.51,161.39,16.0899]
[1721197484633,6.1919,161.5,161.4,1.23877587]
[1721197484941,29.52,161.52,161.4,21.23877587]
[1721197485853,6.1916,161.51,161.4,21.23877587]
[1721197486029,29.52,161.52,161.42,6.1273]
[1721197486226,35.7115,161.52,161.43,1.238713]
[1721197486644,29.52,161.52,161.43,1.238713]
[1721197486827,6.1908,161.53,161.43,1.238713]
[1721197487036,35.5649,161.55,161.43,21.238713]
[1721197487239,6.1908,161.53,161.43,21.238713]
[1721197487454,6.1908,161.53,161.43,21.23849999]
[1721197487757,6.1904,161.54,161.44,1.23849999]
[1721197488261,6.1908,161.53,161.44,1.23849999]
[1721197488963,6.1908,161.53,161.43,20.0]
[1721197489135,6.1904,161.54,161.43,20.0]
[1721197489636,0.34,161.53,161.44,17.26099834]
[1721197489935,6.1899,161.56,161.45,20.0]
[1721197489936,0.34,161.54,161.45,20.0]
[1721197490135,6.1899,161.56,161.46,1.23843568]
[1721197490335,6.1893,161.57,161.47,21.0354]
[1721197490552,6.1893,161.57,161.48,1.23833231]
[1721197490762,6.1893,161.57,161.49,1.23833236]
[1721197491543,0.34,161.56,161.49,1.23833236]
[1721197491882,0.34,161.56,161.48,1.23833754]
[1721197492173,6.5297,161.56,161.48,1.23833639]
[1721197492342,6.19,161.55,161.48,1.23833639]
[1721197492533,0.17,161.54,161.48,1.23833639]
[1721197495239,0.17,161.54,161.47,21.0354]
[1721197495440,0.34,161.54,161.47,21.0354]
[1721197495758,6.5305,161.54,161.47,21.0354]
[1721197495957,0.17,161.54,161.48,1.23846093]
[1721197496270,29.52,161.58,161.49,1.23828414]
[1721197496469,0.34,161.57,161.49,1.23828414]
[1721197496847,6.41125242,161.59,161.48,20.0]
[1721197497072,12.60005242,161.59,161.48,20.0]
[1721197497378,6.1892,161.58,161.48,20.0]
[1721197497972,12.59975242,161.59,161.48,20.0]
[1721197498153,0.34,161.58,161.49,1.23817752]
[1721197498552,0.34,161.58,161.48,20.0]
[1721197498850,6.5289,161.58,161.48,20.0]
[1721197500279,14.74,161.55,161.5,14.74]
[1721197500872,14.74,161.56,161.51,15.97816782]
[1721197501568,14.74,161.56,161.51,14.74]
[1721197501788,14.74,161.56,161.52,1.23812574]
[1721197501951,14.74,161.57,161.52,31.87012574]
[1721197502146,14.74,161.58,161.53,15.97807077]
[1721197502362,14.74,161.58,161.53,15.97803609]
[1721197502852,14.74,161.58,161.53,15.97803686]
[1721197503068,14.74,161.58,161.53,14.74]
[1721197503287,14.74,161.57,161.53,1.23803577]
[1721197503457,14.74,161.57,161.52,30.632]
[1721197503780,14.74,161.58,161.53,14.74]
[1721197503975,0.34,161.59,161.53,15.97806551]
[1721197504288,14.74,161.57,161.52,30.632]
[1721197505162,14.74,161.57,161.53,1.23803598]
[1721197505676,14.74,161.57,161.52,30.632]
[1721197505882,14.74,161.56,161.52,15.892]
[1721197506079,6.5285,161.59,161.52,30.632]
[1721197506259,14.74,161.57,161.52,30.632]
[1721197507988,12.1738871,161.65,161.54,14.74]
[1721197508158,12.1738871,161.65,161.53,7.84983512]
[1721197508159,14.74,161.6,161.55,14.74]
[1721197508359,14.74,161.6,161.55,15.97789498]
[1721197508669,14.74,161.62,161.57,14.74]
[1721197508855,14.74,161.63,161.58,14.74]
[1721197509363,6.1862,161.65,161.59,14.74]
[1721197509561,14.74,161.64,161.59,14.74]
[1721197510792,6.1859,161.66,161.6,1.23755899]
[1721197510969,6.1859,161.66,161.61,15.97744485]
[1721197510970,14.74,161.66,161.61,15.97744485]
[1721197511162,14.74,161.68,161.62,31.2272]
[1721197511362,14.74,161.67,161.62,31.2272]
[1721197511585,14.74,161.66,161.62,16.4872]
[1721197511962,20.9254,161.67,161.62,31.2272]
[1721197512174,6.1858,161.66,161.62,16.4872]
[1721197512801,6.1854,161.67,161.62,16.4872]
[1721197512978,6.1849,161.69,161.62,16.4872]
[1721197513308,6.1851,161.68,161.62,16.4872]
[1721197513491,0.17,161.67,161.62,16.4872]
[1721197513795,6.5254,161.67,161.62,16.4872]
[1721197514380,0.34,161.67,161.62,16.4872]
[1721197514901,29.43,161.72,161.63,1.23728756]
[1721197515115,6.41273014,161.73,161.62,16.4872]
[1721197515283,6.1843,161.7,161.62,16.4872]
[1721197515597,15.457,161.74,161.63,1.23719704]
[1721197515598,6.1842,161.71,161.63,1.23719704]
[1721197515784,6.1843,161.7,161.63,1.23719704]
[1721197515990,6.1839,161.71,161.63,1.23719704]
[1721197516381,6.1839,161.71,161.64,6.4011]
[1721197516582,6.1839,161.71,161.65,1.23706158]
[1721197517189,6.5243,161.7,161.65,1.23706158]
[1721197517701,0.34,161.7,161.65,1.23706158]
[1721197517893,6.1836,161.72,161.65,1.23706158]
[1721197517894,0.34,161.71,161.65,1.23706158]
[1721197518817,6.5239,161.71,161.65,1.23706158]
[1721197519288,6.1843,161.7,161.65,1.23706158]
[1721197519490,6.5239,161.71,161.65,1.23706158]
[1721197520388,6.1843,161.7,161.65,1.23706158]
[1721197520608,6.1843,161.7,161.64,7.6381315]
[1721197520802,6.1843,161.7,161.64,6.4011]
[1721197522912,6.3547,161.69,161.64,6.4011]
[1721197523110,6.1847,161.69,161.64,6.4011]
[1721197524001,6.1843,161.7,161.64,6.4011]
[1721197524188,0.17,161.69,161.64,6.4011]
[1721197525905,0.34,161.69,161.64,6.4011]
[1721197526215,0.34,161.69,161.62,16.4872]
[1721197526408,6.42371212,161.76,161.66,6.3163]
[1721197526595,6.1813,161.78,161.68,15.0524]
[1721197526803,29.43,161.81,161.69,1.23660937]
[1721197527314,6.1812,161.78,161.69,1.23660937]
[1721197527705,6.1809,161.79,161.69,21.23660937]
[1721197528085,29.43,161.81,161.69,21.23660937]
[1721197528086,6.1812,161.78,161.69,21.23660937]